fUST/lending_fUST_20250604
["ID","MTS","AMOUNT","RATE_DAILY","PERIOD"]
[364216145,1749042653861,-1500.0,0.0002226,2]
[364216147,1749042653871,-500.0,0.00022266,2]
[364216149,1749042653881,-500.0,0.00022266,2]
[364216151,1749042653890,-500.0,0.00022267,2]
[364216153,1749042653899,-3000.0,0.0002227,2]
[364216155,1749042653909,-1500.0,0.00022277,2]
[364216157,1749042653919,-5000.0,0.00022278,2]
[364216159,1749042653928,-3000.0,0.0002228,2]
[364216161,1749042653938,-3000.0,0.0002229,2]
[364216163,1749042653947,-3000.0,0.000223,2]
[364216165,1749042653957,-314.98208564,0.000223,3]
[364216167,1749042653966,-3000.0,0.0002231,2]
[364216169,1749042653976,-1271.61743725,0.00022311,2]
[364216171,1749042653984,-3000.0,0.0002232,2]
[364216173,1749042653995,-158.720593,0.0002232,7]
[364216175,1749042654008,-3000.0,0.0002233,2]
[364216177,1749042654018,-3000.0,0.0002234,2]
[364216179,1749042654029,-3000.0,0.0002235,2]
[364216181,1749042654041,-3000.0,0.0002236,2]
[364216183,1749042654051,-3000.0,0.0002237,2]
[364216186,1749042654062,-3000.0,0.0002238,2]
[364216188,1749042654072,-3000.0,0.0002239,2]
[364216190,1749042654083,-3000.0,0.000224,2]
[364216192,1749042654096,-1000.0,0.000224,2]
[364216194,1749042654110,-3000.0,0.0002241,2]
[364216196,1749042654123,-1595.21769639,0.00022411,2]
[364216198,1749042654132,-506.65956259,0.00022411,2]
[364216200,1749042654142,-1500.0,0.00022411,2]
[364216202,1749042654152,-1000.0,0.00022411,2]
[364216204,1749042654162,-4561.37926191,0.00022417,7]
[364216206,1749042654172,-3000.0,0.0002242,2]
[364216208,1749042654181,-535.64223,0.0002242,7]
[364216210,1749042654190,-535.64223,0.0002242,7]
[364216212,1749042654200,-3000.0,0.0002243,2]
[364216214,1749042654209,-4265.700119,0.0002244,2]
[364216216,1749042654218,-158.261927,0.00022465,7]
[364216218,1749042654229,-158.261927,0.00022465,7]
[364216220,1749042654239,-627.42,0.00022465,2]
[364216222,1749042654248,-151.0,0.00022465,7]
[364216224,1749042654258,-159.97616,0.00022465,7]
[364216226,1749042654268,-477.39,0.00022465,2]
[364216228,1749042654278,-981.07,0.00022465,2]
[364216230,1749042654287,-2889.7,0.00022465,2]
[364216232,1749042654296,-2919.59,0.00022465,2]
[364216234,1749042654306,-876.89,0.00022465,2]
[364216236,1749042654315,-1743.65,0.00022465,2]
[364216238,1749042654325,-3684.79,0.00022465,2]
[364216239,1749042654335,-567.94,0.00022465,2]
[364216240,1749042654345,-3714.63,0.00022465,2]
[364216241,1749042654355,-2209.5,0.00022465,2]
[364216242,1749042654365,-742.49,0.00022465,2]
[364216243,1749042654375,-1259.57,0.00022465,2]
[364216244,1749042654385,-933.22,0.00022465,2]
[364216245,1749042654394,-6296.12,0.00022465,2]
[364216246,1749042654403,-519.9,0.00022465,2]
[364216247,1749042654413,-926.98,0.00022465,2]
[364216248,1749042654422,-1503.46,0.00022465,2]
[364216249,1749042654431,-843.76,0.00022465,2]
[364216250,1749042654441,-1022.64,0.00022465,2]
[364216252,1749042654451,-956.94,0.00022465,2]
[364216254,1749042654460,-1396.41,0.00022465,2]
[364216256,1749042654470,-2933.99,0.00022465,2]
[364216258,1749042654479,-4792.12,0.00022465,2]
[364216260,1749042654488,-1345.56,0.00022465,2]
[364216261,1749042654497,-69508.51319375,0.000225,7]
[364216279,1749042654652,-326.95215715,0.0002,2]
[364216374,1749042655784,2000.0,0.00025,30]
[364216814,1749042670828,2000.0,0.00025,30]
[364216815,1749042707422,2000.0,0.00025,30]
[364216822,1749043060652,514.211,0.00025,30]
[364216826,1749043289921,518.76676745,0.00025,30]
[364216827,1749043416786,155.0,0.00025,30]
[364216829,1749043468327,168.151219,0.00013699,2]
[364216844,1749043713192,1334.8891209,0.00024658,120]
[364216845,1749043716370,24900.0,0.00015506,2]
[364216846,1749043717560,60262.41756162,0.000225,60]
[364216847,1749043718391,1078.24511323,0.00024177,120]
[364216895,1749043786723,1000.0,0.00025,30]
[364216911,1749043832280,-296.157679,0.00015575,2]
[364216912,1749043832292,-969.3688342,0.00015699,2]
[364216913,1749043832301,-194.80654419,0.00015943,2]
[364216914,1749043832311,-202.39606943,0.00016338,2]
[364216915,1749043832322,-1200.0,0.00016436,2]
[364216916,1749043832331,-300.0,0.00016437,2]
[364216917,1749043832341,-300.0,0.00016437,2]
[364216918,1749043832350,-300.0,0.00016437,2]
[364216919,1749043832359,-300.0,0.00016437,2]
[364216920,1749043832369,-292.0,0.00016437,2]
[364216921,1749043832378,-272.47901835,0.00016438,2]
[364216922,1749043832388,-440.0,0.00016438,2]
[364216923,1749043832397,-440.0,0.00016438,2]
[364216924,1749043832412,-350.0,0.00016438,2]
[364216925,1749043832422,-430.0,0.00016438,2]
[364216926,1749043832432,-316.52925184,0.00016438,2]
[364216927,1749043832441,-310.0,0.00016438,2]
[364216929,1749043832452,-430.0,0.00016438,2]
[364216931,1749043832462,-363.25502656,0.00016438,2]
[364216933,1749043832471,-430.0,0.00016438,2]
[364216934,1749043832481,-430.0,0.00016438,2]
[364216936,1749043832491,-310.0,0.00016438,2]
[364216938,1749043832501,-540.39180069,0.00016438,2]
[364216939,1749043832514,-430.0,0.00016438,2]
[364216940,1749043832523,-318.86678483,0.00016438,2]
[364216941,1749043832532,-430.0,0.00016438,2]
[364216942,1749043832542,-293.38016786,0.00016438,2]
[364216943,1749043832552,-430.0,0.00016438,2]
[364216944,1749043832562,-440.0,0.00016438,2]
[364216945,1749043832572,-216.62490684,0.00016438,2]
[364216946,1749043832582,-430.0,0.00016438,2]
[364216947,1749043832592,-440.0,0.00016438,2]
[364216948,1749043832602,-440.0,0.00016438,2]
[364216949,1749043832612,-430.0,0.00016438,2]
[364216951,1749043832622,-440.0,0.00016438,2]
[364216953,1749043832631,-233.43568944,0.00016438,2]
[364216956,1749043832653,-206.56431056,0.00016438,2]
[364216958,1749043832663,-440.0,0.00016438,2]
[364216960,1749043832672,-440.0,0.00016438,2]
[364216962,1749043832681,-440.0,0.00016438,2]
[364216964,1749043832690,-440.0,0.00016438,2]
[364216966,1749043832700,-440.0,0.00016438,2]
[364216968,1749043832710,-440.0,0.00016438,2]
[364216970,1749043832719,-317.78238566,0.00016438,2]
[364216972,1749043832728,-440.0,0.00016438,2]
[364216974,1749043832738,-403.50410832,0.00016438,2]
[364216976,1749043832747,-440.0,0.00016438,2]
[364216978,1749043832757,-430.0,0.00016438,2]
[364216980,1749043832766,-450.0,0.00016438,2]
[364216982,1749043832775,-430.0,0.00016438,2]
[364216984,1749043832785,-366.10418064,0.00016438,2]
[364216986,1749043832795,-430.0,0.00016438,2]
[364216988,1749043832804,-440.0,0.00016438,2]
[364216990,1749043832814,-440.0,0.00016438,2]
[364216991,1749043832823,-357.76999194,0.00016438,2]
[364216994,1749043832833,-440.0,0.00016438,2]
[364216996,1749043832842,-440.0,0.00016438,2]
[364216997,1749043832852,-336.01161659,0.00016438,2]
[364216999,1749043832861,-440.0,0.00016438,2]
[364217002,1749043832871,-440.0,0.00016438,2]
[364217004,1749043832880,-500.0,0.00016438,2]
[364217006,1749043832890,-500.0,0.00016438,2]
[364217008,1749043832900,-440.0,0.00016438,2]
[364217009,1749043832910,-440.0,0.00016438,2]
[364217012,1749043832920,-440.0,0.00016438,2]
[364217014,1749043832930,-400.0,0.00016438,2]
[364217016,1749043832939,-430.0,0.00016438,2]
[364217018,1749043832949,-320.40883722,0.00016438,2]
[364217020,1749043832961,-440.0,0.00016438,2]
[364217022,1749043832971,-440.0,0.00016438,2]
[364217024,1749043832980,-440.0,0.00016438,2]
[364217026,1749043832990,-430.0,0.00016438,2]
[364217028,1749043832999,-450.0,0.00016438,2]
[364217030,1749043833009,-440.0,0.00016438,2]
[364217032,1749043833019,-440.0,0.00016438,2]
[364217034,1749043833029,-440.0,0.00016438,2]
[364217036,1749043833040,-440.0,0.00016438,2]
[364217038,1749043833050,-440.0,0.00016438,2]
[364217040,1749043833060,-404.24566802,0.00016438,2]
[364217042,1749043833070,-440.0,0.00016438,2]
[364217044,1749043833080,-440.0,0.00016438,2]
[364217046,1749043833090,-251.83543104,0.00016438,2]
[364217048,1749043833100,-440.0,0.00016438,2]
[364217050,1749043833110,-420.0,0.00016438,2]
[364217052,1749043833120,-393.9916574,0.00016438,2]
[364217054,1749043833130,-440.0,0.00016438,2]
[364217056,1749043833139,-440.0,0.00016438,2]
[364217058,1749043833149,-339.58993469,0.00016438,2]
[364217060,1749043833159,-440.0,0.00016438,2]
[364217062,1749043833169,-440.0,0.00016438,2]
[364217064,1749043833179,-440.0,0.00016438,2]
[364217066,1749043833190,-440.0,0.00016438,2]
[364217068,1749043833200,-440.0,0.00016438,2]
[364217069,1749043833211,-440.0,0.00016438,2]
[364217070,1749043833221,-440.0,0.00016438,2]
[364217072,1749043833231,-440.0,0.00016438,2]
[364217073,1749043833242,-440.0,0.00016438,2]
[364217074,1749043833252,-440.0,0.00016438,2]
[364217075,1749043833261,-440.0,0.00016438,2]
[364217076,1749043833272,-440.0,0.00016438,2]
[364217077,1749043833282,-440.0,0.00016438,2]
[364217078,1749043833293,-440.0,0.00016438,2]
[364217079,1749043833303,-440.0,0.00016438,2]
[364217080,1749043833314,-440.0,0.00016438,2]
[364217081,1749043833324,-286.61897784,0.00016438,2]
[364217082,1749043833333,-1294.34,0.00016438,2]
[364217083,1749043833343,-427.3368377,0.00016438,2]
[364217084,1749043833352,-582.73080363,0.00016438,2]
[364217085,1749043833362,-430.0,0.00016438,2]
[364217086,1749043833375,-440.0,0.00016438,2]
[364217087,1749043833386,-440.0,0.00016438,2]
[364217088,1749043833396,-1679.19,0.00016438,2]
[364217089,1749043833407,-440.0,0.00016438,2]
[364217090,1749043833421,-440.0,0.00016438,2]
[364217091,1749043833431,-440.0,0.00016438,2]
[364217092,1749043833440,-400.0,0.00016438,2]
[364217093,1749043833450,-440.0,0.00016438,2]
[364217094,1749043833461,-578.89,0.00016438,2]
[364217095,1749043833471,-440.0,0.00016438,2]
[364217096,1749043833481,-440.0,0.00016438,2]
[364217097,1749043833493,-440.0,0.00016438,2]
[364217098,1749043833504,-186.90518659,0.00016438,2]
[364217099,1749043833514,-602.97,0.00016438,2]
[364217100,1749043833524,-440.0,0.00016438,2]
[364217101,1749043833535,-440.0,0.00016438,2]
[364217102,1749043833545,-434.80726622,0.00016438,2]
[364217103,1749043833556,-440.0,0.00016438,2]
[364217104,1749043833566,-440.0,0.00016438,2]
[364217105,1749043833577,-440.0,0.00016438,2]
[364217106,1749043833587,-440.0,0.00016438,2]
[364217107,1749043833597,-440.0,0.00016438,2]
[364217108,1749043833608,-220.0,0.00016438,2]
[364217109,1749043833618,-440.0,0.00016438,2]
[364217110,1749043833628,-440.0,0.00016438,2]
[364217111,1749043833639,-440.0,0.00016438,2]
[364217112,1749043833648,-610.23,0.00016438,2]
[364217113,1749043833658,-440.0,0.00016438,2]
[364217114,1749043833668,-440.0,0.00016438,2]
[364217115,1749043833678,-440.0,0.00016438,2]
[364217116,1749043833688,-406.50780173,0.00016438,2]
[364217117,1749043833698,-440.0,0.00016438,2]
[364217118,1749043833708,-440.0,0.00016438,2]
[364217119,1749043833718,-440.0,0.00016438,2]
[364217120,1749043833728,-440.0,0.00016438,2]
[364217121,1749043833739,-440.0,0.00016438,2]
[364217122,1749043833748,-2149.19,0.00016438,2]
[364217123,1749043833758,-440.0,0.00016438,2]
[364217124,1749043833768,-440.0,0.00016438,2]
[364217125,1749043833778,-440.0,0.00016438,2]
[364217126,1749043833789,-440.0,0.00016438,2]
[364217127,1749043833799,-440.0,0.00016438,2]
[364217128,1749043833808,-2673.82,0.00016438,2]
[364217129,1749043833819,-430.0,0.00016438,2]
[364217130,1749043833828,-440.0,0.00016438,2]
[364217131,1749043833838,-440.0,0.00016438,2]
[364217132,1749043833847,-440.0,0.00016438,2]
[364217133,1749043833857,-440.0,0.00016438,2]
[364217134,1749043833866,-52.93329917,0.00016438,2]
[364217135,1749043834014,-387.06670083,0.00016438,2]
[364217136,1749043834026,-253.98043544,0.00016438,2]
[364217179,1749043838182,-246.01956456,0.00016438,2]
[364217181,1749043838192,-507.61,0.00016438,2]
[364217183,1749043838202,-440.0,0.00016438,2]
[364217185,1749043838212,-440.0,0.00016438,2]
[364217187,1749043838222,-440.0,0.00016438,2]
[364217189,1749043838232,-440.0,0.00016438,2]
[364217191,1749043838242,-440.0,0.00016438,2]
[364217193,1749043838251,-440.0,0.00016438,2]
[364217195,1749043838261,-440.0,0.00016438,2]
[364217196,1749043838271,-440.0,0.00016438,2]
[364217201,1749043838281,-440.0,0.00016438,2]
[364217203,1749043838291,-440.0,0.00016438,2]
[364217205,1749043838301,-440.0,0.00016438,2]
[364217206,1749043838311,-440.0,0.00016438,2]
[364217208,1749043838321,-430.0,0.00016438,2]
[364217211,1749043838331,-440.0,0.00016438,2]
[364217213,1749043838341,-440.0,0.00016438,2]
[364217215,1749043838350,-400.0,0.00016438,2]
[364217216,1749043838360,-440.0,0.00016438,2]
[364217219,1749043838370,-440.0,0.00016438,2]
[364217220,1749043838379,-440.0,0.00016438,2]
[364217222,1749043838388,-440.0,0.00016438,2]
[364217224,1749043838398,-440.0,0.00016438,2]
[364217226,1749043838408,-554.89390487,0.00016438,2]
[364217228,1749043838420,-440.0,0.00016438,2]
[364217230,1749043838429,-410.0,0.00016438,2]
[364217232,1749043838439,-440.0,0.00016438,2]
[364217234,1749043838450,-440.0,0.00016438,2]
[364217236,1749043838459,-440.0,0.00016438,2]
[364217238,1749043838468,-440.0,0.00016438,2]
[364217240,1749043838478,-430.0,0.00016438,2]
[364217242,1749043838489,-440.0,0.00016438,2]
[364217244,1749043838499,-467.11767686,0.00016438,2]
[364217246,1749043838509,-440.0,0.00016438,2]
[364217248,1749043838519,-440.0,0.00016438,2]
[364217250,1749043838529,-440.0,0.00016438,2]
[364217252,1749043838538,-440.0,0.00016438,2]
[364217254,1749043838549,-440.0,0.00016438,2]
[364217256,1749043838558,-440.0,0.00016438,2]
[364217258,1749043838568,-4302.01,0.00016438,2]
[364217260,1749043838578,-440.0,0.00016438,2]
[364217262,1749043838588,-2742.71,0.00016438,2]
[364217264,1749043838598,-440.0,0.00016438,2]
[364217266,1749043838608,-440.0,0.00016438,2]
[364217268,1749043838618,-440.0,0.00016438,2]
[364217270,1749043838628,-1046.53,0.00016438,2]
[364217271,1749043838638,-263.39942478,0.00016438,2]
[364217274,1749043838656,-440.0,0.00016438,2]
[364217275,1749043838666,-178.18578969,0.00016438,2]
[364217277,1749043838676,-440.0,0.00016438,2]
[364217280,1749043838686,-440.0,0.00016438,2]
[364217281,1749043838695,-357.43939296,0.00016438,2]
[364217283,1749043838705,-440.0,0.00016438,2]
[364217286,1749043838714,-440.0,0.00016438,2]
[364217288,1749043838724,-440.0,0.00016438,2]
[364217290,1749043838734,-440.0,0.00016438,2]
[364217292,1749043838744,-440.0,0.00016438,2]
[364217294,1749043838755,-1234.55,0.00016438,2]
[364217296,1749043838764,-212.30570943,0.00016438,2]
[364217298,1749043838774,-244.62835012,0.00016438,2]
[364217300,1749043838784,-440.0,0.00016438,2]
[364217303,1749043838794,-440.0,0.00016438,2]
[364217305,1749043838804,-430.0,0.00016438,2]
[364217307,1749043838814,-454.20354946,0.00016438,2]
[364217309,1749043838823,-834.94,0.00016438,2]
[364217311,1749043838832,-440.0,0.00016438,2]
[364217313,1749043838842,-686.23,0.00016438,2]
[364217315,1749043838853,-440.0,0.00016438,2]
[364217317,1749043838862,-655.42,0.00016438,2]
[364217319,1749043838872,-2049.91,0.00016438,2]
[364217321,1749043838882,-440.0,0.00016438,2]
[364217323,1749043838892,-440.0,0.00016438,2]
[364217325,1749043838902,-440.0,0.00016438,2]
[364217327,1749043838911,-440.0,0.00016438,2]
[364217329,1749043838921,-410.0,0.00016438,2]
[364217331,1749043838934,-440.0,0.00016438,2]
[364217333,1749043838949,-771.64,0.00016438,2]
[364217335,1749043838962,-440.0,0.00016438,2]
[364217337,1749043838971,-355.94100041,0.00016438,2]
[364217339,1749043838981,-440.0,0.00016438,2]
[364217341,1749043838990,-440.0,0.00016438,2]
[364217343,1749043838999,-440.0,0.00016438,2]
[364217345,1749043839009,-440.0,0.00016438,2]
[364217347,1749043839019,-440.0,0.00016438,2]
[364217349,1749043839028,-440.0,0.00016438,2]
[364217351,1749043839038,-430.0,0.00016438,2]
[364217353,1749043839049,-440.0,0.00016438,2]
[364217355,1749043839059,-440.0,0.00016438,2]
[364217357,1749043839068,-440.0,0.00016438,2]
[364217359,1749043839077,-440.0,0.00016438,2]
[364217361,1749043839087,-440.0,0.00016438,2]
[364217363,1749043839096,-440.0,0.00016438,2]
[364217365,1749043839106,-440.0,0.00016438,2]
[364217367,1749043839115,-440.0,0.00016438,2]
[364217369,1749043839124,-2082.9,0.00016438,2]
[364217371,1749043839134,-430.4580242,0.00016438,2]
[364217373,1749043839143,-440.0,0.00016438,2]
[364217375,1749043839153,-440.0,0.00016438,2]
[364217377,1749043839162,-440.0,0.00016438,2]
[364217379,1749043839172,-440.0,0.00016438,2]
[364217381,1749043839181,-430.65324588,0.00016438,2]
[364217383,1749043839190,-440.0,0.00016438,2]
[364217385,1749043839201,-440.0,0.00016438,2]
[364217387,1749043839210,-1333.43,0.00016438,2]
[364217389,1749043839219,-500.0,0.00016438,2]
[364217402,1749043839343,-1142.9999416,0.00016612,2]
[364217404,1749043839353,-440.0,0.00016711,2]
[364217406,1749043839363,-1051.97,0.00016711,2]
[364217408,1749043839372,-440.0,0.00016711,2]
[364217410,1749043839382,-2555.1,0.00016711,2]
[364217412,1749043839392,-721.25,0.00016711,2]
[364217414,1749043839402,-440.0,0.00016711,2]
[364217416,1749043839414,-440.0,0.00016711,2]
[364217418,1749043839424,-380.0,0.00016712,2]
[364217420,1749043839434,-390.0,0.00016712,2]
[364217422,1749043839443,-399.60453529,0.00016712,2]
[364217424,1749043839453,-440.0,0.00016712,2]
[364217426,1749043839463,-440.0,0.00016712,2]
[364217428,1749043839472,-440.0,0.00016712,2]
[364217430,1749043839485,-440.0,0.00016712,2]
[364217432,1749043839495,-420.0,0.00016712,2]
[364217434,1749043839505,-403.0454505,0.00016712,2]
[364217436,1749043839515,-430.0,0.00016712,2]
[364217438,1749043839524,-430.0,0.00016712,2]
[364217440,1749043839533,-440.0,0.00016712,2]
[364217442,1749043839543,-430.0,0.00016712,2]
[364217444,1749043839553,-320.0,0.00016712,2]
[364217446,1749043839563,-440.0,0.00016712,2]
[364217448,1749043839572,-420.0,0.00016712,2]
[364217450,1749043839582,-430.0,0.00016712,2]
[364217452,1749043839594,-430.0,0.00016712,2]
[364217455,1749043839603,-430.0,0.00016712,2]
[364217457,1749043839613,-440.0,0.00016712,2]
[364217459,1749043839623,-162.12,0.00016712,2]
[364217461,1749043839632,-430.0,0.00016712,2]
[364217463,1749043839642,-440.0,0.00016712,2]
[364217465,1749043839652,-430.0,0.00016712,2]
[364217467,1749043839661,-440.0,0.00016712,2]
[364217469,1749043839671,-420.0,0.00016712,2]
[364217471,1749043839680,-440.0,0.00016712,2]
[364217473,1749043839690,-440.0,0.00016712,2]
[364217476,1749043839699,-440.0,0.00016712,2]
[364217479,1749043839709,-440.0,0.00016712,2]
[364217481,1749043839719,-430.0,0.00016712,2]
[364217484,1749043839728,-440.0,0.00016712,2]
[364217487,1749043839737,-440.0,0.00016712,2]
[364217490,1749043839746,-440.0,0.00016712,2]
[364217493,1749043839756,-440.0,0.00016712,2]
[364217497,1749043839767,-420.0,0.00016712,2]
[364217499,1749043839776,-440.0,0.00016712,2]
[364217502,1749043839786,-430.0,0.00016712,2]
[364217504,1749043839796,-420.0,0.00016712,2]
[364217508,1749043839806,-440.0,0.00016712,2]
[364217510,1749043839816,-440.0,0.00016712,2]
[364217513,1749043839826,-440.0,0.00016712,2]
[364217516,1749043839836,-440.0,0.00016712,2]
[364217520,1749043839846,-440.0,0.00016712,2]
[364217522,1749043839856,-1294.34,0.00016712,2]
[364217524,1749043839866,-440.0,0.00016712,2]
[364217526,1749043839875,-1679.19,0.00016712,2]
[364217528,1749043839885,-440.0,0.00016712,2]
[364217530,1749043839894,-440.0,0.00016712,2]
[364217532,1749043839903,-440.0,0.00016712,2]
[364217534,1749043839913,-359.30605409,0.00016712,2]
[364217536,1749043839922,-578.89,0.00016712,2]
[364217539,1749043839932,-440.0,0.00016712,2]
[364217542,1749043839941,-440.0,0.00016712,2]
[364217545,1749043839951,-440.0,0.00016712,2]
[364217548,1749043839960,-602.97,0.00016712,2]
[364217551,1749043839970,-440.0,0.00016712,2]
[364217554,1749043839979,-440.0,0.00016712,2]
[364217557,1749043839989,-440.0,0.00016712,2]
[364217560,1749043839999,-440.0,0.00016712,2]
[364217563,1749043840009,-430.0,0.00016712,2]
[364217566,1749043840018,-440.0,0.00016712,2]
[364217569,1749043840028,-610.23,0.00016712,2]
[364217571,1749043840038,-430.0,0.00016712,2]
[364217574,1749043840049,-440.0,0.00016712,2]
[364217577,1749043840059,-440.0,0.00016712,2]
[364217580,1749043840068,-440.0,0.00016712,2]
[364217583,1749043840078,-440.0,0.00016712,2]
[364217586,1749043840087,-440.0,0.00016712,2]
[364217589,1749043840097,-440.0,0.00016712,2]
[364217592,1749043840106,-547.09890554,0.00016712,2]
[364217595,1749043840116,-2149.19,0.00016712,2]
[364217598,1749043840126,-440.0,0.00016712,2]
[364217601,1749043840135,-430.0,0.00016712,2]
[364217604,1749043840144,-319.32506764,0.00016712,2]
[364217607,1749043840154,-440.0,0.00016712,2]
[364217610,1749043840164,-2673.82,0.00016712,2]
[364217613,1749043840174,-440.0,0.00016712,2]
[364217616,1749043840184,-440.0,0.00016712,2]
[364217619,1749043840194,-420.0,0.00016712,2]
[364217622,1749043840203,-507.61,0.00016712,2]
[364217625,1749043840212,-440.0,0.00016712,2]
[364217628,1749043840222,-430.0,0.00016712,2]
[364217631,1749043840231,-430.0,0.00016712,2]
[364217634,1749043840242,-430.0,0.00016712,2]
[364217636,1749043840252,-440.0,0.00016712,2]
[364217639,1749043840262,-440.0,0.00016712,2]
[364217642,1749043840271,-440.0,0.00016712,2]
[364217645,1749043840281,-440.0,0.00016712,2]
[364217648,1749043840291,-440.0,0.00016712,2]
[364217651,1749043840301,-440.0,0.00016712,2]
[364217654,1749043840312,-440.0,0.00016712,2]
[364217657,1749043840321,-440.0,0.00016712,2]
[364217660,1749043840331,-440.0,0.00016712,2]
[364217663,1749043840340,-440.0,0.00016712,2]
[364217666,1749043840350,-440.0,0.00016712,2]
[364217669,1749043840360,-440.0,0.00016712,2]
[364217672,1749043840370,-440.0,0.00016712,2]
[364217675,1749043840379,-440.0,0.00016712,2]
[364217678,1749043840389,-420.0,0.00016712,2]
[364217681,1749043840398,-465.66784215,0.00016712,2]
[364217684,1749043840409,-440.0,0.00016712,2]
[364217688,1749043840422,-440.0,0.00016712,2]
[364217691,1749043840432,-4302.01,0.00016712,2]
[364217693,1749043840442,-2742.71,0.00016712,2]
[364217697,1749043840452,-440.0,0.00016712,2]
[364217700,1749043840463,-380.0,0.00016712,2]
[364217702,1749043840472,-430.0,0.00016712,2]
[364217704,1749043840481,-1046.53,0.00016712,2]
[364217706,1749043840491,-430.0,0.00016712,2]
[364217708,1749043840501,-440.0,0.00016712,2]
[364217710,1749043840511,-440.0,0.00016712,2]
[364217712,1749043840520,-430.0,0.00016712,2]
[364217714,1749043840530,-440.0,0.00016712,2]
[364217716,1749043840539,-425.59610418,0.00016712,2]
[364217720,1749043840549,-440.0,0.00016712,2]
[364217722,1749043840559,-440.0,0.00016712,2]
[364217726,1749043840569,-1234.55,0.00016712,2]
[364217729,1749043840579,-440.0,0.00016712,2]
[364217732,1749043840590,-834.94,0.00016712,2]
[364217734,1749043840601,-440.0,0.00016712,2]
[364217737,1749043840610,-686.23,0.00016712,2]
[364217740,1749043840619,-440.0,0.00016712,2]
[364217744,1749043840629,-655.42,0.00016712,2]
[364217747,1749043840639,-2049.91,0.00016712,2]
[364217749,1749043840649,-440.0,0.00016712,2]
[364217751,1749043840659,-416.00695728,0.00016712,2]
[364217754,1749043840668,-440.0,0.00016712,2]
[364217758,1749043840678,-440.0,0.00016712,2]
[364217761,1749043840687,-771.64,0.00016712,2]
[364217764,1749043840695,-422.0949607,0.00016712,2]
[364217766,1749043840703,-569.46286385,0.00016712,2]
[364217769,1749043840712,-440.0,0.00016712,2]
[364217772,1749043840722,-440.0,0.00016712,2]
[364217775,1749043840730,-440.0,0.00016712,2]
[364217778,1749043840739,-440.0,0.00016712,2]
[364217780,1749043840747,-440.0,0.00016712,2]
[364217783,1749043840757,-440.0,0.00016712,2]
[364217786,1749043840765,-440.0,0.00016712,2]
[364217788,1749043840773,-440.0,0.00016712,2]
[364217791,1749043840781,-440.0,0.00016712,2]
[364217793,1749043840790,-440.0,0.00016712,2]
[364217796,1749043840800,-2082.9,0.00016712,2]
[364217799,1749043840808,-440.0,0.00016712,2]
[364217802,1749043840817,-440.0,0.00016985,2]
[364217805,1749043840825,-1051.97,0.00016985,2]
[364217808,1749043840834,-430.0,0.00016985,2]
[364217811,1749043840843,-2555.1,0.00016985,2]
[364217814,1749043840852,-721.25,0.00016985,2]